Department family,Entity,Date,Expense Type,Expense area,Supplier,Transaction number,AP Amount (�)
Department of Health,NHS Rotherham CCG,31/12/2017,Clinical&Medical- Non NHS LES,LOCAL ENHANCED SERVICES,ARDENS HEALTH INFORMATICS LTD,20166883,"71,531.40 "
Department of Health,NHS Rotherham CCG,31/12/2017,Hcare Srv Rec Fdtn Trust-Contract Baseline,ACUTE COMMISSIONING,BARNSLEY HOSPITAL NHS FOUNDATION TRUST,19970348,"110,213.00 "
Department of Health,NHS Rotherham CCG,31/12/2017,Clinical&Medical-Commercial Sector,ACUTE COMMISSIONING,BMI HEALTHCARE COLLECTIONS,20047586,"26,541.85 "
Department of Health,NHS Rotherham CCG,31/12/2017,Clinical&Medical-Commercial Sector,ACUTE COMMISSIONING,CARE UK CLINICAL SERVICES LTD,20227901,"41,051.32 "
Department of Health,NHS Rotherham CCG,31/12/2017,Clinical&Medical-Commercial Sector,ACUTE COMMISSIONING,CLAREMONT HOSPITAL,20047653,"46,830.00 "
Department of Health,NHS Rotherham CCG,31/12/2017,Hcare Srv Rec Fdtn Trust-Contract Baseline,ACUTE COMMISSIONING,DONCASTER AND BASSETLAW HOSPITALS NHS FOUNDATION TRUST,19925064,"827,504.33 "
Department of Health,NHS Rotherham CCG,31/12/2017,C&M-PMS Contract Value,PRC DELEGATED CO-COMMISSIONING,NHS ROTHERHAM CCG GP PRACTICE,20017171,"35,824.38 "
Department of Health,NHS Rotherham CCG,31/12/2017,C&M-PMS DES Extended Hours Access,PRC DELEGATED CO-COMMISSIONING,NHS ROTHERHAM CCG GP PRACTICE,20017171,"2,560.25 "
Department of Health,NHS Rotherham CCG,31/12/2017,C&M-PMS DES Learn Dsblty Hlth Chk,PRC DELEGATED CO-COMMISSIONING,NHS ROTHERHAM CCG GP PRACTICE,20017171,"1,120.00 "
Department of Health,NHS Rotherham CCG,31/12/2017,C&M-PMS Funding Differential Review,PRC DELEGATED CO-COMMISSIONING,NHS ROTHERHAM CCG GP PRACTICE,20017171,"3,629.25 "
Department of Health,NHS Rotherham CCG,31/12/2017,C&M-PMS Out of Hours Opt Outs,PRC DELEGATED CO-COMMISSIONING,NHS ROTHERHAM CCG GP PRACTICE,20017171,3.04 
Department of Health,NHS Rotherham CCG,31/12/2017,C&M-PMS PCO Seniority,PRC DELEGATED CO-COMMISSIONING,NHS ROTHERHAM CCG GP PRACTICE,20017171,"1,880.85 "
Department of Health,NHS Rotherham CCG,31/12/2017,C&M-PMS Prem Actual Rent,PRC DELEGATED CO-COMMISSIONING,NHS ROTHERHAM CCG GP PRACTICE,20017171,"2,677.08 "
Department of Health,NHS Rotherham CCG,31/12/2017,C&M-PMS Prem Healthcentre Rent,PRC DELEGATED CO-COMMISSIONING,NHS ROTHERHAM CCG GP PRACTICE,20017171,"1,400.73 "
Department of Health,NHS Rotherham CCG,31/12/2017,C&M-PMS Prem Notional Rent,PRC DELEGATED CO-COMMISSIONING,NHS ROTHERHAM CCG GP PRACTICE,20017171,"1,406.25 "
Department of Health,NHS Rotherham CCG,31/12/2017,C&M-PMS Prem Rates,PRC DELEGATED CO-COMMISSIONING,NHS ROTHERHAM CCG GP PRACTICE,20017171,637.20 
Department of Health,NHS Rotherham CCG,31/12/2017,C&M-PMS Prem Water Rates,PRC DELEGATED CO-COMMISSIONING,NHS ROTHERHAM CCG GP PRACTICE,20017171,34.13 
Department of Health,NHS Rotherham CCG,31/12/2017,C&M-PMS QOF Aspiration,PRC DELEGATED CO-COMMISSIONING,NHS ROTHERHAM CCG GP PRACTICE,20017171,"3,300.53 "
Department of Health,NHS Rotherham CCG,31/12/2017,C&M-PMS Contract Value,PRC DELEGATED CO-COMMISSIONING,NHS ROTHERHAM CCG GP PRACTICE,20017169,"93,830.49 "
Department of Health,NHS Rotherham CCG,31/12/2017,C&M-PMS DES Extended Hours Access,PRC DELEGATED CO-COMMISSIONING,NHS ROTHERHAM CCG GP PRACTICE,20017169,"5,503.35 "
Department of Health,NHS Rotherham CCG,31/12/2017,C&M-PMS DES Learn Dsblty Hlth Chk,PRC DELEGATED CO-COMMISSIONING,NHS ROTHERHAM CCG GP PRACTICE,20017169,"2,240.00 "
Department of Health,NHS Rotherham CCG,31/12/2017,C&M-PMS Funding Differential Review,PRC DELEGATED CO-COMMISSIONING,NHS ROTHERHAM CCG GP PRACTICE,20017169,"1,077.92 "
Department of Health,NHS Rotherham CCG,31/12/2017,C&M-PMS PCO Seniority,PRC DELEGATED CO-COMMISSIONING,NHS ROTHERHAM CCG GP PRACTICE,20017169,"2,965.93 "
Department of Health,NHS Rotherham CCG,31/12/2017,C&M-PMS Prem Notional Rent,PRC DELEGATED CO-COMMISSIONING,NHS ROTHERHAM CCG GP PRACTICE,20017169,"7,331.33 "
Department of Health,NHS Rotherham CCG,31/12/2017,C&M-PMS Prem Rates,PRC DELEGATED CO-COMMISSIONING,NHS ROTHERHAM CCG GP PRACTICE,20017169,"2,570.40 "
Department of Health,NHS Rotherham CCG,31/12/2017,C&M-PMS QOF Aspiration,PRC DELEGATED CO-COMMISSIONING,NHS ROTHERHAM CCG GP PRACTICE,20017169,"9,545.93 "
Department of Health,NHS Rotherham CCG,31/12/2017,C&M-PMS Contract Value,PRC DELEGATED CO-COMMISSIONING,NHS ROTHERHAM CCG GP PRACTICE,20017173,"91,016.70 "
Department of Health,NHS Rotherham CCG,31/12/2017,C&M-PMS Funding Differential Review,PRC DELEGATED CO-COMMISSIONING,NHS ROTHERHAM CCG GP PRACTICE,20017173,"1,020.33 "
Department of Health,NHS Rotherham CCG,31/12/2017,C&M-PMS Out of Hours Opt Outs,PRC DELEGATED CO-COMMISSIONING,NHS ROTHERHAM CCG GP PRACTICE,20017173,5.39 
Department of Health,NHS Rotherham CCG,31/12/2017,C&M-PMS PCO Seniority,PRC DELEGATED CO-COMMISSIONING,NHS ROTHERHAM CCG GP PRACTICE,20017173,"3,499.36 "
Department of Health,NHS Rotherham CCG,31/12/2017,C&M-PMS Prem Actual Rent,PRC DELEGATED CO-COMMISSIONING,NHS ROTHERHAM CCG GP PRACTICE,20017173,"3,275.00 "
Department of Health,NHS Rotherham CCG,31/12/2017,C&M-PMS Prem Notional Rent,PRC DELEGATED CO-COMMISSIONING,NHS ROTHERHAM CCG GP PRACTICE,20017173,"5,345.83 "
Department of Health,NHS Rotherham CCG,31/12/2017,C&M-PMS Prem Rates,PRC DELEGATED CO-COMMISSIONING,NHS ROTHERHAM CCG GP PRACTICE,20017173,"1,982.40 "
Department of Health,NHS Rotherham CCG,31/12/2017,C&M-PMS QOF Aspiration,PRC DELEGATED CO-COMMISSIONING,NHS ROTHERHAM CCG GP PRACTICE,20017173,"9,058.03 "
Department of Health,NHS Rotherham CCG,31/12/2017,C&M-GMS DES Extended Hours Access,PRC DELEGATED CO-COMMISSIONING,NHS ROTHERHAM CCG GP PRACTICE,20193545,"2,840.98 "
Department of Health,NHS Rotherham CCG,31/12/2017,C&M-GMS DES Learn Dsblty Hlth Chk,PRC DELEGATED CO-COMMISSIONING,NHS ROTHERHAM CCG GP PRACTICE,20193545,700.00 
Department of Health,NHS Rotherham CCG,31/12/2017,C&M-GMS Global Sum,PRC DELEGATED CO-COMMISSIONING,NHS ROTHERHAM CCG GP PRACTICE,20193545,"44,124.74 "
Department of Health,NHS Rotherham CCG,31/12/2017,C&M-GMS MPIG Correction Factor,PRC DELEGATED CO-COMMISSIONING,NHS ROTHERHAM CCG GP PRACTICE,20193545,185.09 
Department of Health,NHS Rotherham CCG,31/12/2017,C&M-GMS PCO Seniority,PRC DELEGATED CO-COMMISSIONING,NHS ROTHERHAM CCG GP PRACTICE,20193545,"2,779.07 "
Department of Health,NHS Rotherham CCG,31/12/2017,C&M-GMS Prem Notional Rent,PRC DELEGATED CO-COMMISSIONING,NHS ROTHERHAM CCG GP PRACTICE,20193545,"2,991.67 "
Department of Health,NHS Rotherham CCG,31/12/2017,C&M-GMS Prem Rates,PRC DELEGATED CO-COMMISSIONING,NHS ROTHERHAM CCG GP PRACTICE,20193545,285.00 
Department of Health,NHS Rotherham CCG,31/12/2017,C&M-GMS Prem Water Rates,PRC DELEGATED CO-COMMISSIONING,NHS ROTHERHAM CCG GP PRACTICE,20193545,120.14 
Department of Health,NHS Rotherham CCG,31/12/2017,C&M-GMS QOF Aspiration,PRC DELEGATED CO-COMMISSIONING,NHS ROTHERHAM CCG GP PRACTICE,20193545,"5,826.52 "
Department of Health,NHS Rotherham CCG,31/12/2017,C&M-PMS Contract Value,PRC DELEGATED CO-COMMISSIONING,NHS ROTHERHAM CCG GP PRACTICE,20017179,"109,006.52 "
Department of Health,NHS Rotherham CCG,31/12/2017,C&M-PMS DES Learn Dsblty Hlth Chk,PRC DELEGATED CO-COMMISSIONING,NHS ROTHERHAM CCG GP PRACTICE,20017179,"2,100.00 "
Department of Health,NHS Rotherham CCG,31/12/2017,C&M-PMS Funding Differential Review,PRC DELEGATED CO-COMMISSIONING,NHS ROTHERHAM CCG GP PRACTICE,20017179,"1,348.67 "
Department of Health,NHS Rotherham CCG,31/12/2017,C&M-PMS Out of Hours Opt Outs,PRC DELEGATED CO-COMMISSIONING,NHS ROTHERHAM CCG GP PRACTICE,20017179,40.17 
Department of Health,NHS Rotherham CCG,31/12/2017,C&M-PMS PCO Seniority,PRC DELEGATED CO-COMMISSIONING,NHS ROTHERHAM CCG GP PRACTICE,20017179,"3,900.15 "
Department of Health,NHS Rotherham CCG,31/12/2017,C&M-PMS Prem Healthcentre Rent,PRC DELEGATED CO-COMMISSIONING,NHS ROTHERHAM CCG GP PRACTICE,20017179,"1,777.14 "
Department of Health,NHS Rotherham CCG,31/12/2017,C&M-PMS QOF Aspiration,PRC DELEGATED CO-COMMISSIONING,NHS ROTHERHAM CCG GP PRACTICE,20017179,"11,408.17 "
Department of Health,NHS Rotherham CCG,31/12/2017,C&M-GMS DES Extended Hours Access,PRC DELEGATED CO-COMMISSIONING,NHS ROTHERHAM CCG GP PRACTICE,20193547,"5,429.73 "
Department of Health,NHS Rotherham CCG,31/12/2017,C&M-GMS DES Learn Dsblty Hlth Chk,PRC DELEGATED CO-COMMISSIONING,NHS ROTHERHAM CCG GP PRACTICE,20193547,"3,220.00 "
Department of Health,NHS Rotherham CCG,31/12/2017,C&M-GMS Global Sum,PRC DELEGATED CO-COMMISSIONING,NHS ROTHERHAM CCG GP PRACTICE,20193547,"84,215.80 "
Department of Health,NHS Rotherham CCG,31/12/2017,C&M-GMS MPIG Correction Factor,PRC DELEGATED CO-COMMISSIONING,NHS ROTHERHAM CCG GP PRACTICE,20193547,"3,858.30 "
Department of Health,NHS Rotherham CCG,31/12/2017,C&M-GMS PCO Seniority,PRC DELEGATED CO-COMMISSIONING,NHS ROTHERHAM CCG GP PRACTICE,20193547,"3,832.43 "
Department of Health,NHS Rotherham CCG,31/12/2017,C&M-GMS Prem Notional Rent,PRC DELEGATED CO-COMMISSIONING,NHS ROTHERHAM CCG GP PRACTICE,20193547,"6,994.79 "
Department of Health,NHS Rotherham CCG,31/12/2017,C&M-GMS Prem Rates,PRC DELEGATED CO-COMMISSIONING,NHS ROTHERHAM CCG GP PRACTICE,20193547,"1,916.00 "
Department of Health,NHS Rotherham CCG,31/12/2017,C&M-GMS QOF Aspiration,PRC DELEGATED CO-COMMISSIONING,NHS ROTHERHAM CCG GP PRACTICE,20193547,"9,824.76 "
Department of Health,NHS Rotherham CCG,31/12/2017,C&M-PMS Contract Value,PRC DELEGATED CO-COMMISSIONING,NHS ROTHERHAM CCG GP PRACTICE,20017176,(25.67)
Department of Health,NHS Rotherham CCG,31/12/2017,C&M-PMS GP Statutory Levy,PRC DELEGATED CO-COMMISSIONING,NHS ROTHERHAM CCG GP PRACTICE,20017176,(588.53)
Department of Health,NHS Rotherham CCG,31/12/2017,C&M-PMS Out of Hours Opt Outs,PRC DELEGATED CO-COMMISSIONING,NHS ROTHERHAM CCG GP PRACTICE,20017176,"(7,730.02)"
Department of Health,NHS Rotherham CCG,31/12/2017,C&M-PMS QOF Aspiration,PRC DELEGATED CO-COMMISSIONING,NHS ROTHERHAM CCG GP PRACTICE,20017176,"(1,788.54)"
Department of Health,NHS Rotherham CCG,31/12/2017,C&M-PMS Voluntary Levy,PRC DELEGATED CO-COMMISSIONING,NHS ROTHERHAM CCG GP PRACTICE,20017176,(86.63)
Department of Health,NHS Rotherham CCG,31/12/2017,ME - PMS TPS Added Years Adj EEs,PRC DELEGATED CO-COMMISSIONING,NHS ROTHERHAM CCG GP PRACTICE,20017176,(675.00)
Department of Health,NHS Rotherham CCG,31/12/2017,ME-PMS GP Pension EEs-PMS,PRC DELEGATED CO-COMMISSIONING,NHS ROTHERHAM CCG GP PRACTICE,20017176,"(13,225.01)"
Department of Health,NHS Rotherham CCG,31/12/2017,ME-PMS GP Pension ERs Adjs - PMS,PRC DELEGATED CO-COMMISSIONING,NHS ROTHERHAM CCG GP PRACTICE,20017176,"(13,857.53)"
Department of Health,NHS Rotherham CCG,31/12/2017,C&M-PMS Contract Value,PRC DELEGATED CO-COMMISSIONING,NHS ROTHERHAM CCG GP PRACTICE,20017177,"163,688.86 "
Department of Health,NHS Rotherham CCG,31/12/2017,C&M-PMS DES Extended Hours Access,PRC DELEGATED CO-COMMISSIONING,NHS ROTHERHAM CCG GP PRACTICE,20017177,"9,888.08 "
Department of Health,NHS Rotherham CCG,31/12/2017,C&M-PMS DES Learn Dsblty Hlth Chk,PRC DELEGATED CO-COMMISSIONING,NHS ROTHERHAM CCG GP PRACTICE,20017177,"1,960.00 "
Department of Health,NHS Rotherham CCG,31/12/2017,C&M-PMS Funding Differential Review,PRC DELEGATED CO-COMMISSIONING,NHS ROTHERHAM CCG GP PRACTICE,20017177,"4,236.00 "
Department of Health,NHS Rotherham CCG,31/12/2017,C&M-PMS Out of Hours Opt Outs,PRC DELEGATED CO-COMMISSIONING,NHS ROTHERHAM CCG GP PRACTICE,20017177,1.27 
Department of Health,NHS Rotherham CCG,31/12/2017,C&M-PMS PCO Seniority,PRC DELEGATED CO-COMMISSIONING,NHS ROTHERHAM CCG GP PRACTICE,20017177,"8,528.75 "
Department of Health,NHS Rotherham CCG,31/12/2017,C&M-PMS Prem Actual Rent,PRC DELEGATED CO-COMMISSIONING,NHS ROTHERHAM CCG GP PRACTICE,20017177,"12,510.33 "
Department of Health,NHS Rotherham CCG,31/12/2017,C&M-PMS Prem Notional Rent,PRC DELEGATED CO-COMMISSIONING,NHS ROTHERHAM CCG GP PRACTICE,20017177,"7,078.33 "
Department of Health,NHS Rotherham CCG,31/12/2017,C&M-PMS Prem Rates,PRC DELEGATED CO-COMMISSIONING,NHS ROTHERHAM CCG GP PRACTICE,20017177,"4,591.20 "
Department of Health,NHS Rotherham CCG,31/12/2017,C&M-PMS QOF Aspiration,PRC DELEGATED CO-COMMISSIONING,NHS ROTHERHAM CCG GP PRACTICE,20017177,"20,546.71 "
Department of Health,NHS Rotherham CCG,31/12/2017,ME - PMS GP Prior Year ERs,PRC DELEGATED CO-COMMISSIONING,NHS ROTHERHAM CCG GP PRACTICE,20017177,"3,246.10 "
Department of Health,NHS Rotherham CCG,31/12/2017,ME-PMS GP Prior Year EEs,PRC DELEGATED CO-COMMISSIONING,NHS ROTHERHAM CCG GP PRACTICE,20017177,"3,064.50 "
Department of Health,NHS Rotherham CCG,31/12/2017,C&M-PMS Cost of Drugs -Dispensing,LOCAL ENHANCED SERVICES,NHS ROTHERHAM CCG GP PRACTICE,20219439,"(45,240.88)"
Department of Health,NHS Rotherham CCG,31/12/2017,C&M-PMS Prsc Chrgs Cll&Rmttd by GPs,PRC DELEGATED CO-COMMISSIONING,NHS ROTHERHAM CCG GP PRACTICE,20219439,(799.80)
Department of Health,NHS Rotherham CCG,31/12/2017,C&M-PMS Cost of Drugs -Dispensing,LOCAL ENHANCED SERVICES,NHS ROTHERHAM CCG GP PRACTICE,20219440,"75,768.18 "
Department of Health,NHS Rotherham CCG,31/12/2017,C&M-PMS Prof fees Dispensing,PRC DELEGATED CO-COMMISSIONING,NHS ROTHERHAM CCG GP PRACTICE,20219440,"14,584.13 "
Department of Health,NHS Rotherham CCG,31/12/2017,C&M-PMS Prsc Chrgs Cll&Rmttd by GPs,LOCAL ENHANCED SERVICES,NHS ROTHERHAM CCG GP PRACTICE,20219440,799.80 
Department of Health,NHS Rotherham CCG,31/12/2017,C&M-PMS Contract Value,PRC DELEGATED CO-COMMISSIONING,NHS ROTHERHAM CCG GP PRACTICE,20017175,"90,937.62 "
Department of Health,NHS Rotherham CCG,31/12/2017,C&M-PMS DES Extended Hours Access,PRC DELEGATED CO-COMMISSIONING,NHS ROTHERHAM CCG GP PRACTICE,20017175,"5,415.00 "
Department of Health,NHS Rotherham CCG,31/12/2017,C&M-PMS DES Learn Dsblty Hlth Chk,PRC DELEGATED CO-COMMISSIONING,NHS ROTHERHAM CCG GP PRACTICE,20017175,840.00 
Department of Health,NHS Rotherham CCG,31/12/2017,C&M-PMS Funding Differential Review,PRC DELEGATED CO-COMMISSIONING,NHS ROTHERHAM CCG GP PRACTICE,20017175,"4,022.08 "
Department of Health,NHS Rotherham CCG,31/12/2017,C&M-PMS PCO Seniority,PRC DELEGATED CO-COMMISSIONING,NHS ROTHERHAM CCG GP PRACTICE,20017175,"5,805.69 "
Department of Health,NHS Rotherham CCG,31/12/2017,C&M-PMS Prem Notional Rent,PRC DELEGATED CO-COMMISSIONING,NHS ROTHERHAM CCG GP PRACTICE,20017175,"14,424.42 "
Department of Health,NHS Rotherham CCG,31/12/2017,C&M-PMS Prem Rates,PRC DELEGATED CO-COMMISSIONING,NHS ROTHERHAM CCG GP PRACTICE,20017175,"3,231.60 "
Department of Health,NHS Rotherham CCG,31/12/2017,C&M-PMS QOF Aspiration,PRC DELEGATED CO-COMMISSIONING,NHS ROTHERHAM CCG GP PRACTICE,20017175,"11,193.86 "
Department of Health,NHS Rotherham CCG,31/12/2017,C&M-PMS Cost of Drugs -Dispensing,LOCAL ENHANCED SERVICES,NHS ROTHERHAM CCG GP PRACTICE,20219437,"(44,933.08)"
Department of Health,NHS Rotherham CCG,31/12/2017,C&M-PMS Prsc Chrgs Cll&Rmttd by GPs,PRC DELEGATED CO-COMMISSIONING,NHS ROTHERHAM CCG GP PRACTICE,20219437,"(1,427.60)"
Department of Health,NHS Rotherham CCG,31/12/2017,C&M-PMS Cost of Drugs -Dispensing,LOCAL ENHANCED SERVICES,NHS ROTHERHAM CCG GP PRACTICE,20219438,"77,254.35 "
Department of Health,NHS Rotherham CCG,31/12/2017,C&M-PMS Prof fees Dispensing,PRC DELEGATED CO-COMMISSIONING,NHS ROTHERHAM CCG GP PRACTICE,20219438,"15,350.55 "
Department of Health,NHS Rotherham CCG,31/12/2017,C&M-PMS Prsc Chrgs Cll&Rmttd by GPs,LOCAL ENHANCED SERVICES,NHS ROTHERHAM CCG GP PRACTICE,20219438,"1,427.60 "
Department of Health,NHS Rotherham CCG,31/12/2017,C&M-GMS DES Extended Hours Access,PRC DELEGATED CO-COMMISSIONING,NHS ROTHERHAM CCG GP PRACTICE,20193549,"5,438.75 "
Department of Health,NHS Rotherham CCG,31/12/2017,C&M-GMS DES Learn Dsblty Hlth Chk,PRC DELEGATED CO-COMMISSIONING,NHS ROTHERHAM CCG GP PRACTICE,20193549,"1,400.00 "
Department of Health,NHS Rotherham CCG,31/12/2017,C&M-GMS Global Sum,PRC DELEGATED CO-COMMISSIONING,NHS ROTHERHAM CCG GP PRACTICE,20193549,"82,158.66 "
Department of Health,NHS Rotherham CCG,31/12/2017,C&M-GMS MPIG Correction Factor,PRC DELEGATED CO-COMMISSIONING,NHS ROTHERHAM CCG GP PRACTICE,20193549,"3,259.32 "
Department of Health,NHS Rotherham CCG,31/12/2017,C&M-GMS PCO Seniority,PRC DELEGATED CO-COMMISSIONING,NHS ROTHERHAM CCG GP PRACTICE,20193549,"5,142.06 "
Department of Health,NHS Rotherham CCG,31/12/2017,C&M-GMS Prem Cost Rent,PRC DELEGATED CO-COMMISSIONING,NHS ROTHERHAM CCG GP PRACTICE,20193549,762.92 
Department of Health,NHS Rotherham CCG,31/12/2017,C&M-GMS Prem Notional Rent,PRC DELEGATED CO-COMMISSIONING,NHS ROTHERHAM CCG GP PRACTICE,20193549,"8,908.34 "
Department of Health,NHS Rotherham CCG,31/12/2017,C&M-GMS Prem Rates,PRC DELEGATED CO-COMMISSIONING,NHS ROTHERHAM CCG GP PRACTICE,20193549,"1,336.00 "
Department of Health,NHS Rotherham CCG,31/12/2017,C&M-GMS Prem Water Rates,PRC DELEGATED CO-COMMISSIONING,NHS ROTHERHAM CCG GP PRACTICE,20193549,264.02 
Department of Health,NHS Rotherham CCG,31/12/2017,C&M-GMS QOF Aspiration,PRC DELEGATED CO-COMMISSIONING,NHS ROTHERHAM CCG GP PRACTICE,20193549,"9,420.36 "
Department of Health,NHS Rotherham CCG,31/12/2017,ME - GMS GP Prior Year ERs,PRC DELEGATED CO-COMMISSIONING,NHS ROTHERHAM CCG GP PRACTICE,20193549,"1,888.40 "
Department of Health,NHS Rotherham CCG,31/12/2017,ME-GMS GP Prior Year EEs,PRC DELEGATED CO-COMMISSIONING,NHS ROTHERHAM CCG GP PRACTICE,20193549,"1,782.75 "
Department of Health,NHS Rotherham CCG,31/12/2017,C&M-GMS Cost of Drugs -Dispensing,LOCAL ENHANCED SERVICES,NHS ROTHERHAM CCG GP PRACTICE,20219444,"29,944.50 "
Department of Health,NHS Rotherham CCG,31/12/2017,C&M-GMS Prof Fees Dispensing,PRC DELEGATED CO-COMMISSIONING,NHS ROTHERHAM CCG GP PRACTICE,20219444,"5,948.63 "
Department of Health,NHS Rotherham CCG,31/12/2017,C&M-GMS PrscrptnChrgsColl&RmttdbyGP,LOCAL ENHANCED SERVICES,NHS ROTHERHAM CCG GP PRACTICE,20219444,619.20 
Department of Health,NHS Rotherham CCG,31/12/2017,C&M-PMS Contract Value,PRC DELEGATED CO-COMMISSIONING,NHS ROTHERHAM CCG GP PRACTICE,20017183,"102,263.89 "
Department of Health,NHS Rotherham CCG,31/12/2017,C&M-PMS Funding Differential Review,PRC DELEGATED CO-COMMISSIONING,NHS ROTHERHAM CCG GP PRACTICE,20017183,"2,929.58 "
Department of Health,NHS Rotherham CCG,31/12/2017,C&M-PMS Out of Hours Opt Outs,PRC DELEGATED CO-COMMISSIONING,NHS ROTHERHAM CCG GP PRACTICE,20017183,21.78 
Department of Health,NHS Rotherham CCG,31/12/2017,C&M-PMS PCO Other,PRC DELEGATED CO-COMMISSIONING,NHS ROTHERHAM CCG GP PRACTICE,20017183,628.44 
Department of Health,NHS Rotherham CCG,31/12/2017,C&M-PMS PCO Seniority,PRC DELEGATED CO-COMMISSIONING,NHS ROTHERHAM CCG GP PRACTICE,20017183,"6,876.67 "
Department of Health,NHS Rotherham CCG,31/12/2017,C&M-PMS Prem Notional Rent,PRC DELEGATED CO-COMMISSIONING,NHS ROTHERHAM CCG GP PRACTICE,20017183,"9,208.42 "
Department of Health,NHS Rotherham CCG,31/12/2017,C&M-PMS QOF Aspiration,PRC DELEGATED CO-COMMISSIONING,NHS ROTHERHAM CCG GP PRACTICE,20017183,"10,629.91 "
Department of Health,NHS Rotherham CCG,31/12/2017,C&M-PMS Contract Value,PRC DELEGATED CO-COMMISSIONING,NHS ROTHERHAM CCG GP PRACTICE,20017180,(885.33)
Department of Health,NHS Rotherham CCG,31/12/2017,C&M-PMS GP Statutory Levy,PRC DELEGATED CO-COMMISSIONING,NHS ROTHERHAM CCG GP PRACTICE,20017180,(499.06)
Department of Health,NHS Rotherham CCG,31/12/2017,C&M-PMS Out of Hours Opt Outs,PRC DELEGATED CO-COMMISSIONING,NHS ROTHERHAM CCG GP PRACTICE,20017180,"(6,971.05)"
Department of Health,NHS Rotherham CCG,31/12/2017,C&M-PMS Prem Healthcentre Rent,PRC DELEGATED CO-COMMISSIONING,NHS ROTHERHAM CCG GP PRACTICE,20017180,"(1,215.77)"
Department of Health,NHS Rotherham CCG,31/12/2017,C&M-PMS Voluntary Levy,PRC DELEGATED CO-COMMISSIONING,NHS ROTHERHAM CCG GP PRACTICE,20017180,(73.46)
Department of Health,NHS Rotherham CCG,31/12/2017,ME - PMS TPS Added Years Adj EEs,PRC DELEGATED CO-COMMISSIONING,NHS ROTHERHAM CCG GP PRACTICE,20017180,(176.27)
Department of Health,NHS Rotherham CCG,31/12/2017,ME-PMS GP Pension EEs-PMS,PRC DELEGATED CO-COMMISSIONING,NHS ROTHERHAM CCG GP PRACTICE,20017180,"(9,185.45)"
Department of Health,NHS Rotherham CCG,31/12/2017,ME-PMS GP Pension ERs Adjs - PMS,PRC DELEGATED CO-COMMISSIONING,NHS ROTHERHAM CCG GP PRACTICE,20017180,"(9,858.46)"
Department of Health,NHS Rotherham CCG,31/12/2017,C&M-PMS Contract Value,PRC DELEGATED CO-COMMISSIONING,NHS ROTHERHAM CCG GP PRACTICE,20017181,"147,773.13 "
Department of Health,NHS Rotherham CCG,31/12/2017,C&M-PMS DES Extended Hours Access,PRC DELEGATED CO-COMMISSIONING,NHS ROTHERHAM CCG GP PRACTICE,20017181,"8,402.28 "
Department of Health,NHS Rotherham CCG,31/12/2017,C&M-PMS DES Learn Dsblty Hlth Chk,PRC DELEGATED CO-COMMISSIONING,NHS ROTHERHAM CCG GP PRACTICE,20017181,"1,260.00 "
Department of Health,NHS Rotherham CCG,31/12/2017,C&M-PMS DES UNPLANNED ADMISSIONS,PRC DELEGATED CO-COMMISSIONING,NHS ROTHERHAM CCG GP PRACTICE,20017181,"14,022.47 "
Department of Health,NHS Rotherham CCG,31/12/2017,C&M-PMS Funding Differential Review,PRC DELEGATED CO-COMMISSIONING,NHS ROTHERHAM CCG GP PRACTICE,20017181,"1,112.08 "
Department of Health,NHS Rotherham CCG,31/12/2017,C&M-PMS Out of Hours Opt Outs,PRC DELEGATED CO-COMMISSIONING,NHS ROTHERHAM CCG GP PRACTICE,20017181,44.69 
Department of Health,NHS Rotherham CCG,31/12/2017,C&M-PMS PCO Locum Adop/Pat/Mat,PRC DELEGATED CO-COMMISSIONING,NHS ROTHERHAM CCG GP PRACTICE,20017181,452.70 
Department of Health,NHS Rotherham CCG,31/12/2017,C&M-PMS PCO Seniority,PRC DELEGATED CO-COMMISSIONING,NHS ROTHERHAM CCG GP PRACTICE,20017181,"6,053.73 "
Department of Health,NHS Rotherham CCG,31/12/2017,C&M-PMS Prem Actual Rent,PRC DELEGATED CO-COMMISSIONING,NHS ROTHERHAM CCG GP PRACTICE,20017181,550.00 
Department of Health,NHS Rotherham CCG,31/12/2017,C&M-PMS Prem Healthcentre Rent,PRC DELEGATED CO-COMMISSIONING,NHS ROTHERHAM CCG GP PRACTICE,20017181,564.93 
Department of Health,NHS Rotherham CCG,31/12/2017,C&M-PMS Prem Notional Rent,PRC DELEGATED CO-COMMISSIONING,NHS ROTHERHAM CCG GP PRACTICE,20017181,"21,023.33 "
Department of Health,NHS Rotherham CCG,31/12/2017,C&M-PMS QOF Aspiration,PRC DELEGATED CO-COMMISSIONING,NHS ROTHERHAM CCG GP PRACTICE,20017181,"16,075.82 "
Department of Health,NHS Rotherham CCG,31/12/2017,C&M-PMS Contract Value,PRC DELEGATED CO-COMMISSIONING,NHS ROTHERHAM CCG GP PRACTICE,20040023,"55,460.28 "
Department of Health,NHS Rotherham CCG,31/12/2017,C&M-PMS DES Learn Dsblty Hlth Chk,PRC DELEGATED CO-COMMISSIONING,NHS ROTHERHAM CCG GP PRACTICE,20040023,560.00 
Department of Health,NHS Rotherham CCG,31/12/2017,C&M-PMS Funding Differential Review,PRC DELEGATED CO-COMMISSIONING,NHS ROTHERHAM CCG GP PRACTICE,20040023,"1,000.58 "
Department of Health,NHS Rotherham CCG,31/12/2017,C&M-PMS Out of Hours Opt Outs,PRC DELEGATED CO-COMMISSIONING,NHS ROTHERHAM CCG GP PRACTICE,20040023,28.05 
Department of Health,NHS Rotherham CCG,31/12/2017,C&M-PMS PCO Locum Adop/Pat/Mat,PRC DELEGATED CO-COMMISSIONING,NHS ROTHERHAM CCG GP PRACTICE,20040023,"16,513.51 "
Department of Health,NHS Rotherham CCG,31/12/2017,C&M-PMS PCO Other,PRC DELEGATED CO-COMMISSIONING,NHS ROTHERHAM CCG GP PRACTICE,20040023,543.12 
Department of Health,NHS Rotherham CCG,31/12/2017,C&M-PMS PCO Seniority,PRC DELEGATED CO-COMMISSIONING,NHS ROTHERHAM CCG GP PRACTICE,20040023,"4,193.81 "
Department of Health,NHS Rotherham CCG,31/12/2017,C&M-PMS Prem Healthcentre Rent,PRC DELEGATED CO-COMMISSIONING,NHS ROTHERHAM CCG GP PRACTICE,20040023,"5,876.26 "
Department of Health,NHS Rotherham CCG,31/12/2017,C&M-PMS QOF Aspiration,PRC DELEGATED CO-COMMISSIONING,NHS ROTHERHAM CCG GP PRACTICE,20040023,"6,479.48 "
Department of Health,NHS Rotherham CCG,31/12/2017,C&M-GMS DES Extended Hours Access,PRC DELEGATED CO-COMMISSIONING,NHS ROTHERHAM CCG GP PRACTICE,20193551,"1,538.53 "
Department of Health,NHS Rotherham CCG,31/12/2017,C&M-GMS DES Learn Dsblty Hlth Chk,PRC DELEGATED CO-COMMISSIONING,NHS ROTHERHAM CCG GP PRACTICE,20193551,140.00 
Department of Health,NHS Rotherham CCG,31/12/2017,C&M-GMS Global Sum,PRC DELEGATED CO-COMMISSIONING,NHS ROTHERHAM CCG GP PRACTICE,20193551,"24,878.61 "
Department of Health,NHS Rotherham CCG,31/12/2017,C&M-GMS MPIG Correction Factor,PRC DELEGATED CO-COMMISSIONING,NHS ROTHERHAM CCG GP PRACTICE,20193551,134.98 
Department of Health,NHS Rotherham CCG,31/12/2017,C&M-GMS PCO Seniority,PRC DELEGATED CO-COMMISSIONING,NHS ROTHERHAM CCG GP PRACTICE,20193551,275.14 
Department of Health,NHS Rotherham CCG,31/12/2017,C&M-GMS Prem Healthcentre Rent,PRC DELEGATED CO-COMMISSIONING,NHS ROTHERHAM CCG GP PRACTICE,20193551,"3,986.30 "
Department of Health,NHS Rotherham CCG,31/12/2017,C&M-GMS QOF Aspiration,PRC DELEGATED CO-COMMISSIONING,NHS ROTHERHAM CCG GP PRACTICE,20193551,"3,237.30 "
Department of Health,NHS Rotherham CCG,31/12/2017,C&M-PMS Contract Value,PRC DELEGATED CO-COMMISSIONING,NHS ROTHERHAM CCG GP PRACTICE,20017185,"17,749.75 "
Department of Health,NHS Rotherham CCG,31/12/2017,C&M-PMS DES Extended Hours Access,PRC DELEGATED CO-COMMISSIONING,NHS ROTHERHAM CCG GP PRACTICE,20017185,992.28 
Department of Health,NHS Rotherham CCG,31/12/2017,C&M-PMS DES Learn Dsblty Hlth Chk,PRC DELEGATED CO-COMMISSIONING,NHS ROTHERHAM CCG GP PRACTICE,20017185,"1,400.00 "
Department of Health,NHS Rotherham CCG,31/12/2017,C&M-PMS Funding Differential Review,PRC DELEGATED CO-COMMISSIONING,NHS ROTHERHAM CCG GP PRACTICE,20017185,737.83 
Department of Health,NHS Rotherham CCG,31/12/2017,C&M-PMS Out of Hours Opt Outs,PRC DELEGATED CO-COMMISSIONING,NHS ROTHERHAM CCG GP PRACTICE,20017185,3.50 
Department of Health,NHS Rotherham CCG,31/12/2017,C&M-PMS PCO Other,PRC DELEGATED CO-COMMISSIONING,NHS ROTHERHAM CCG GP PRACTICE,20017185,858.67 
Department of Health,NHS Rotherham CCG,31/12/2017,C&M-PMS Prem Actual Rent,PRC DELEGATED CO-COMMISSIONING,NHS ROTHERHAM CCG GP PRACTICE,20017185,"5,755.21 "
Department of Health,NHS Rotherham CCG,31/12/2017,C&M-PMS Prem Rates,PRC DELEGATED CO-COMMISSIONING,NHS ROTHERHAM CCG GP PRACTICE,20017185,"1,069.20 "
Department of Health,NHS Rotherham CCG,31/12/2017,C&M-PMS QOF Aspiration,PRC DELEGATED CO-COMMISSIONING,NHS ROTHERHAM CCG GP PRACTICE,20017185,"1,782.21 "
Department of Health,NHS Rotherham CCG,31/12/2017,C&M-PMS Contract Value,PRC DELEGATED CO-COMMISSIONING,NHS ROTHERHAM CCG GP PRACTICE,20017189,"26,775.71 "
Department of Health,NHS Rotherham CCG,31/12/2017,C&M-PMS DES Extended Hours Access,PRC DELEGATED CO-COMMISSIONING,NHS ROTHERHAM CCG GP PRACTICE,20017189,"1,611.68 "
Department of Health,NHS Rotherham CCG,31/12/2017,C&M-PMS Funding Differential Review,PRC DELEGATED CO-COMMISSIONING,NHS ROTHERHAM CCG GP PRACTICE,20017189,"1,708.25 "
Department of Health,NHS Rotherham CCG,31/12/2017,C&M-PMS PCO Seniority,PRC DELEGATED CO-COMMISSIONING,NHS ROTHERHAM CCG GP PRACTICE,20017189,245.70 
Department of Health,NHS Rotherham CCG,31/12/2017,C&M-PMS Prem Notional Rent,PRC DELEGATED CO-COMMISSIONING,NHS ROTHERHAM CCG GP PRACTICE,20017189,"3,100.00 "
Department of Health,NHS Rotherham CCG,31/12/2017,C&M-PMS Prem Rates,PRC DELEGATED CO-COMMISSIONING,NHS ROTHERHAM CCG GP PRACTICE,20017189,92.20 
Department of Health,NHS Rotherham CCG,31/12/2017,C&M-PMS QOF Aspiration,PRC DELEGATED CO-COMMISSIONING,NHS ROTHERHAM CCG GP PRACTICE,20017189,"2,810.34 "
Department of Health,NHS Rotherham CCG,31/12/2017,C&M-PMS Contract Value,PRC DELEGATED CO-COMMISSIONING,NHS ROTHERHAM CCG GP PRACTICE,20017197,"51,296.32 "
Department of Health,NHS Rotherham CCG,31/12/2017,C&M-PMS DES Learn Dsblty Hlth Chk,PRC DELEGATED CO-COMMISSIONING,NHS ROTHERHAM CCG GP PRACTICE,20017197,840.00 
Department of Health,NHS Rotherham CCG,31/12/2017,C&M-PMS Funding Differential Review,PRC DELEGATED CO-COMMISSIONING,NHS ROTHERHAM CCG GP PRACTICE,20017197,"1,679.58 "
Department of Health,NHS Rotherham CCG,31/12/2017,C&M-PMS Out of Hours Opt Outs,PRC DELEGATED CO-COMMISSIONING,NHS ROTHERHAM CCG GP PRACTICE,20017197,5.40 
Department of Health,NHS Rotherham CCG,31/12/2017,C&M-PMS PCO Seniority,PRC DELEGATED CO-COMMISSIONING,NHS ROTHERHAM CCG GP PRACTICE,20017197,"3,383.95 "
Department of Health,NHS Rotherham CCG,31/12/2017,C&M-PMS Prem Notional Rent,PRC DELEGATED CO-COMMISSIONING,NHS ROTHERHAM CCG GP PRACTICE,20017197,"5,822.50 "
Department of Health,NHS Rotherham CCG,31/12/2017,C&M-PMS Prem Rates,PRC DELEGATED CO-COMMISSIONING,NHS ROTHERHAM CCG GP PRACTICE,20017197,"1,947.80 "
Department of Health,NHS Rotherham CCG,31/12/2017,C&M-PMS QOF Aspiration,PRC DELEGATED CO-COMMISSIONING,NHS ROTHERHAM CCG GP PRACTICE,20017197,"5,637.80 "
Department of Health,NHS Rotherham CCG,31/12/2017,C&M-PMS Contract Value,PRC DELEGATED CO-COMMISSIONING,NHS ROTHERHAM CCG GP PRACTICE,20017199,"51,410.94 "
Department of Health,NHS Rotherham CCG,31/12/2017,C&M-PMS DES Learn Dsblty Hlth Chk,PRC DELEGATED CO-COMMISSIONING,NHS ROTHERHAM CCG GP PRACTICE,20017199,"3,220.00 "
Department of Health,NHS Rotherham CCG,31/12/2017,C&M-PMS Funding Differential Review,PRC DELEGATED CO-COMMISSIONING,NHS ROTHERHAM CCG GP PRACTICE,20017199,"1,168.00 "
Department of Health,NHS Rotherham CCG,31/12/2017,C&M-PMS Out of Hours Opt Outs,PRC DELEGATED CO-COMMISSIONING,NHS ROTHERHAM CCG GP PRACTICE,20017199,0.35 
Department of Health,NHS Rotherham CCG,31/12/2017,C&M-PMS PCO Seniority,PRC DELEGATED CO-COMMISSIONING,NHS ROTHERHAM CCG GP PRACTICE,20017199,"3,152.56 "
Department of Health,NHS Rotherham CCG,31/12/2017,C&M-PMS Prem Healthcentre Rent,PRC DELEGATED CO-COMMISSIONING,NHS ROTHERHAM CCG GP PRACTICE,20017199,"4,395.05 "
Department of Health,NHS Rotherham CCG,31/12/2017,C&M-PMS QOF Aspiration,PRC DELEGATED CO-COMMISSIONING,NHS ROTHERHAM CCG GP PRACTICE,20017199,"6,275.92 "
Department of Health,NHS Rotherham CCG,31/12/2017,C&M-GMS DES Extended Hours Access,PRC DELEGATED CO-COMMISSIONING,NHS ROTHERHAM CCG GP PRACTICE,20217770,"4,309.68 "
Department of Health,NHS Rotherham CCG,31/12/2017,C&M-GMS DES Learn Dsblty Hlth Chk,PRC DELEGATED CO-COMMISSIONING,NHS ROTHERHAM CCG GP PRACTICE,20217770,140.00 
Department of Health,NHS Rotherham CCG,31/12/2017,C&M-GMS Global Sum,PRC DELEGATED CO-COMMISSIONING,NHS ROTHERHAM CCG GP PRACTICE,20217770,"69,334.60 "
Department of Health,NHS Rotherham CCG,31/12/2017,C&M-GMS PCO Locum Adop/Pat/Mat,PRC DELEGATED CO-COMMISSIONING,NHS ROTHERHAM CCG GP PRACTICE,20217770,"23,073.64 "
Department of Health,NHS Rotherham CCG,31/12/2017,C&M-GMS PCO Locum Sickness,PRC DELEGATED CO-COMMISSIONING,NHS ROTHERHAM CCG GP PRACTICE,20217770,"9,913.26 "
Department of Health,NHS Rotherham CCG,31/12/2017,C&M-GMS PCO Seniority,PRC DELEGATED CO-COMMISSIONING,NHS ROTHERHAM CCG GP PRACTICE,20217770,"1,649.98 "
Department of Health,NHS Rotherham CCG,31/12/2017,C&M-GMS Prem Notional Rent,PRC DELEGATED CO-COMMISSIONING,NHS ROTHERHAM CCG GP PRACTICE,20217770,"8,776.09 "
Department of Health,NHS Rotherham CCG,31/12/2017,C&M-GMS Prem Rates,PRC DELEGATED CO-COMMISSIONING,NHS ROTHERHAM CCG GP PRACTICE,20217770,845.00 
Department of Health,NHS Rotherham CCG,31/12/2017,C&M-GMS QOF Aspiration,PRC DELEGATED CO-COMMISSIONING,NHS ROTHERHAM CCG GP PRACTICE,20217770,"8,813.31 "
Department of Health,NHS Rotherham CCG,31/12/2017,C&M-GMS DES Extended Hours Access,PRC DELEGATED CO-COMMISSIONING,NHS ROTHERHAM CCG GP PRACTICE,20193554,"1,908.08 "
Department of Health,NHS Rotherham CCG,31/12/2017,C&M-GMS DES Learn Dsblty Hlth Chk,PRC DELEGATED CO-COMMISSIONING,NHS ROTHERHAM CCG GP PRACTICE,20193554,420.00 
Department of Health,NHS Rotherham CCG,31/12/2017,C&M-GMS Global Sum,PRC DELEGATED CO-COMMISSIONING,NHS ROTHERHAM CCG GP PRACTICE,20193554,"28,817.95 "
Department of Health,NHS Rotherham CCG,31/12/2017,C&M-GMS PCO Seniority,PRC DELEGATED CO-COMMISSIONING,NHS ROTHERHAM CCG GP PRACTICE,20193554,526.62 
Department of Health,NHS Rotherham CCG,31/12/2017,C&M-GMS Prem Healthcentre Rent,PRC DELEGATED CO-COMMISSIONING,NHS ROTHERHAM CCG GP PRACTICE,20193554,"4,242.36 "
Department of Health,NHS Rotherham CCG,31/12/2017,C&M-GMS QOF Aspiration,PRC DELEGATED CO-COMMISSIONING,NHS ROTHERHAM CCG GP PRACTICE,20193554,"2,401.85 "
Department of Health,NHS Rotherham CCG,31/12/2017,C&M-PMS Contract Value,PRC DELEGATED CO-COMMISSIONING,NHS ROTHERHAM CCG GP PRACTICE,20017193,"59,455.10 "
Department of Health,NHS Rotherham CCG,31/12/2017,C&M-PMS DES Extended Hours Access,PRC DELEGATED CO-COMMISSIONING,NHS ROTHERHAM CCG GP PRACTICE,20017193,"3,507.40 "
Department of Health,NHS Rotherham CCG,31/12/2017,C&M-PMS DES Learn Dsblty Hlth Chk,PRC DELEGATED CO-COMMISSIONING,NHS ROTHERHAM CCG GP PRACTICE,20017193,560.00 
Department of Health,NHS Rotherham CCG,31/12/2017,C&M-PMS PCO Other,PRC DELEGATED CO-COMMISSIONING,NHS ROTHERHAM CCG GP PRACTICE,20017193,543.12 
Department of Health,NHS Rotherham CCG,31/12/2017,C&M-PMS PCO Seniority,PRC DELEGATED CO-COMMISSIONING,NHS ROTHERHAM CCG GP PRACTICE,20017193,"4,849.45 "
Department of Health,NHS Rotherham CCG,31/12/2017,C&M-PMS Prem Notional Rent,PRC DELEGATED CO-COMMISSIONING,NHS ROTHERHAM CCG GP PRACTICE,20017193,"3,966.67 "
Department of Health,NHS Rotherham CCG,31/12/2017,C&M-PMS Prem Rates,PRC DELEGATED CO-COMMISSIONING,NHS ROTHERHAM CCG GP PRACTICE,20017193,"1,166.40 "
Department of Health,NHS Rotherham CCG,31/12/2017,C&M-PMS QOF Aspiration,PRC DELEGATED CO-COMMISSIONING,NHS ROTHERHAM CCG GP PRACTICE,20017193,"6,347.20 "
Department of Health,NHS Rotherham CCG,31/12/2017,C&M-PMS Contract Value,PRC DELEGATED CO-COMMISSIONING,NHS ROTHERHAM CCG GP PRACTICE,20017195,"12,114.89 "
Department of Health,NHS Rotherham CCG,31/12/2017,C&M-PMS DES Learn Dsblty Hlth Chk,PRC DELEGATED CO-COMMISSIONING,NHS ROTHERHAM CCG GP PRACTICE,20017195,700.00 
Department of Health,NHS Rotherham CCG,31/12/2017,C&M-PMS Funding Differential Review,PRC DELEGATED CO-COMMISSIONING,NHS ROTHERHAM CCG GP PRACTICE,20017195,"1,483.33 "
Department of Health,NHS Rotherham CCG,31/12/2017,C&M-PMS PCO Other,PRC DELEGATED CO-COMMISSIONING,NHS ROTHERHAM CCG GP PRACTICE,20017195,461.40 
Department of Health,NHS Rotherham CCG,31/12/2017,C&M-PMS PCO Seniority,PRC DELEGATED CO-COMMISSIONING,NHS ROTHERHAM CCG GP PRACTICE,20017195,989.99 
Department of Health,NHS Rotherham CCG,31/12/2017,C&M-PMS Prem Notional Rent,PRC DELEGATED CO-COMMISSIONING,NHS ROTHERHAM CCG GP PRACTICE,20017195,"2,016.67 "
Department of Health,NHS Rotherham CCG,31/12/2017,C&M-PMS QOF Aspiration,PRC DELEGATED CO-COMMISSIONING,NHS ROTHERHAM CCG GP PRACTICE,20017195,"1,467.79 "
Department of Health,NHS Rotherham CCG,31/12/2017,ME - PMS GP Prior Year ERs,PRC DELEGATED CO-COMMISSIONING,NHS ROTHERHAM CCG GP PRACTICE,20017195,"2,634.96 "
Department of Health,NHS Rotherham CCG,31/12/2017,ME-PMS GP Prior Year AVCs,PRC DELEGATED CO-COMMISSIONING,NHS ROTHERHAM CCG GP PRACTICE,20017195,769.50 
Department of Health,NHS Rotherham CCG,31/12/2017,ME-PMS GP Prior Year EEs,PRC DELEGATED CO-COMMISSIONING,NHS ROTHERHAM CCG GP PRACTICE,20017195,"3,169.46 "
Department of Health,NHS Rotherham CCG,31/12/2017,C&M-PMS Contract Value,PRC DELEGATED CO-COMMISSIONING,NHS ROTHERHAM CCG GP PRACTICE,20019537,"50,287.33 "
Department of Health,NHS Rotherham CCG,31/12/2017,C&M-PMS DES Extended Hours Access,PRC DELEGATED CO-COMMISSIONING,NHS ROTHERHAM CCG GP PRACTICE,20019537,"2,789.20 "
Department of Health,NHS Rotherham CCG,31/12/2017,C&M-PMS DES Learn Dsblty Hlth Chk,PRC DELEGATED CO-COMMISSIONING,NHS ROTHERHAM CCG GP PRACTICE,20019537,"1,260.00 "
Department of Health,NHS Rotherham CCG,31/12/2017,C&M-PMS Funding Differential Review,PRC DELEGATED CO-COMMISSIONING,NHS ROTHERHAM CCG GP PRACTICE,20019537,393.25 
Department of Health,NHS Rotherham CCG,31/12/2017,C&M-PMS PCO Seniority,PRC DELEGATED CO-COMMISSIONING,NHS ROTHERHAM CCG GP PRACTICE,20019537,"2,805.58 "
Department of Health,NHS Rotherham CCG,31/12/2017,C&M-PMS Prem Notional Rent,PRC DELEGATED CO-COMMISSIONING,NHS ROTHERHAM CCG GP PRACTICE,20019537,"3,762.50 "
Department of Health,NHS Rotherham CCG,31/12/2017,C&M-PMS Prem Rates,PRC DELEGATED CO-COMMISSIONING,NHS ROTHERHAM CCG GP PRACTICE,20019537,596.40 
Department of Health,NHS Rotherham CCG,31/12/2017,C&M-PMS QOF Aspiration,PRC DELEGATED CO-COMMISSIONING,NHS ROTHERHAM CCG GP PRACTICE,20019537,"5,482.71 "
Department of Health,NHS Rotherham CCG,31/12/2017,C&M-PMS Contract Value,PRC DELEGATED CO-COMMISSIONING,NHS ROTHERHAM CCG GP PRACTICE,20019538,"65,605.42 "
Department of Health,NHS Rotherham CCG,31/12/2017,C&M-PMS DES Extended Hours Access,PRC DELEGATED CO-COMMISSIONING,NHS ROTHERHAM CCG GP PRACTICE,20019538,"3,767.23 "
Department of Health,NHS Rotherham CCG,31/12/2017,C&M-PMS Funding Differential Review,PRC DELEGATED CO-COMMISSIONING,NHS ROTHERHAM CCG GP PRACTICE,20019538,936.00 
Department of Health,NHS Rotherham CCG,31/12/2017,C&M-PMS Out of Hours Opt Outs,PRC DELEGATED CO-COMMISSIONING,NHS ROTHERHAM CCG GP PRACTICE,20019538,4.32 
Department of Health,NHS Rotherham CCG,31/12/2017,C&M-PMS PCO Seniority,PRC DELEGATED CO-COMMISSIONING,NHS ROTHERHAM CCG GP PRACTICE,20019538,"2,003.98 "
Department of Health,NHS Rotherham CCG,31/12/2017,C&M-PMS Prem Healthcentre Rent,PRC DELEGATED CO-COMMISSIONING,NHS ROTHERHAM CCG GP PRACTICE,20019538,603.36 
Department of Health,NHS Rotherham CCG,31/12/2017,C&M-PMS Prem Notional Rent,PRC DELEGATED CO-COMMISSIONING,NHS ROTHERHAM CCG GP PRACTICE,20019538,"3,402.08 "
Department of Health,NHS Rotherham CCG,31/12/2017,C&M-PMS Prem Rates,PRC DELEGATED CO-COMMISSIONING,NHS ROTHERHAM CCG GP PRACTICE,20019538,746.40 
Department of Health,NHS Rotherham CCG,31/12/2017,C&M-PMS QOF Aspiration,PRC DELEGATED CO-COMMISSIONING,NHS ROTHERHAM CCG GP PRACTICE,20019538,"6,089.10 "
Department of Health,NHS Rotherham CCG,31/12/2017,C&M-PMS Contract Value,PRC DELEGATED CO-COMMISSIONING,NHS ROTHERHAM CCG GP PRACTICE,20040020,(84.50)
Department of Health,NHS Rotherham CCG,31/12/2017,C&M-PMS GP Statutory Levy,PRC DELEGATED CO-COMMISSIONING,NHS ROTHERHAM CCG GP PRACTICE,20040020,(224.97)
Department of Health,NHS Rotherham CCG,31/12/2017,C&M-PMS Out of Hours Opt Outs,PRC DELEGATED CO-COMMISSIONING,NHS ROTHERHAM CCG GP PRACTICE,20040020,"(3,102.37)"
Department of Health,NHS Rotherham CCG,31/12/2017,C&M-PMS Prem Healthcentre Rent,PRC DELEGATED CO-COMMISSIONING,NHS ROTHERHAM CCG GP PRACTICE,20040020,(523.63)
Department of Health,NHS Rotherham CCG,31/12/2017,C&M-PMS QOF Aspiration,PRC DELEGATED CO-COMMISSIONING,NHS ROTHERHAM CCG GP PRACTICE,20040020,(334.52)
Department of Health,NHS Rotherham CCG,31/12/2017,C&M-PMS Voluntary Levy,PRC DELEGATED CO-COMMISSIONING,NHS ROTHERHAM CCG GP PRACTICE,20040020,(33.11)
Department of Health,NHS Rotherham CCG,31/12/2017,ME - PMS GP Prior Year ERs,PRC DELEGATED CO-COMMISSIONING,NHS ROTHERHAM CCG GP PRACTICE,20040020,"(6,735.03)"
Department of Health,NHS Rotherham CCG,31/12/2017,ME-PMS GP Pension EEs-PMS,PRC DELEGATED CO-COMMISSIONING,NHS ROTHERHAM CCG GP PRACTICE,20040020,"(6,371.53)"
Department of Health,NHS Rotherham CCG,31/12/2017,ME-PMS GP Pension ERs Adjs - PMS,PRC DELEGATED CO-COMMISSIONING,NHS ROTHERHAM CCG GP PRACTICE,20040020,"(6,888.04)"
Department of Health,NHS Rotherham CCG,31/12/2017,ME-PMS GP Prior Year EEs,PRC DELEGATED CO-COMMISSIONING,NHS ROTHERHAM CCG GP PRACTICE,20040020,"(6,358.25)"
Department of Health,NHS Rotherham CCG,31/12/2017,C&M-PMS Contract Value,PRC DELEGATED CO-COMMISSIONING,NHS ROTHERHAM CCG GP PRACTICE,20019535,"47,042.24 "
Department of Health,NHS Rotherham CCG,31/12/2017,C&M-PMS DES Learn Dsblty Hlth Chk,PRC DELEGATED CO-COMMISSIONING,NHS ROTHERHAM CCG GP PRACTICE,20019535,700.00 
Department of Health,NHS Rotherham CCG,31/12/2017,C&M-PMS Funding Differential Review,PRC DELEGATED CO-COMMISSIONING,NHS ROTHERHAM CCG GP PRACTICE,20019535,"1,226.17 "
Department of Health,NHS Rotherham CCG,31/12/2017,C&M-PMS PCO Seniority,PRC DELEGATED CO-COMMISSIONING,NHS ROTHERHAM CCG GP PRACTICE,20019535,"2,182.73 "
Department of Health,NHS Rotherham CCG,31/12/2017,C&M-PMS Prem Healthcentre Rent,PRC DELEGATED CO-COMMISSIONING,NHS ROTHERHAM CCG GP PRACTICE,20019535,"1,979.17 "
Department of Health,NHS Rotherham CCG,31/12/2017,C&M-PMS QOF Aspiration,PRC DELEGATED CO-COMMISSIONING,NHS ROTHERHAM CCG GP PRACTICE,20019535,"4,189.51 "
Department of Health,NHS Rotherham CCG,31/12/2017,C&M-PMS Contract Value,PRC DELEGATED CO-COMMISSIONING,NHS ROTHERHAM CCG GP PRACTICE,20017191,"46,061.49 "
Department of Health,NHS Rotherham CCG,31/12/2017,C&M-PMS DES Extended Hours Access,PRC DELEGATED CO-COMMISSIONING,NHS ROTHERHAM CCG GP PRACTICE,20017191,"2,738.85 "
Department of Health,NHS Rotherham CCG,31/12/2017,C&M-PMS Funding Differential Review,PRC DELEGATED CO-COMMISSIONING,NHS ROTHERHAM CCG GP PRACTICE,20017191,638.58 
Department of Health,NHS Rotherham CCG,31/12/2017,C&M-PMS PCO Other,PRC DELEGATED CO-COMMISSIONING,NHS ROTHERHAM CCG GP PRACTICE,20017191,"4,526.00 "
Department of Health,NHS Rotherham CCG,31/12/2017,C&M-PMS PCO Seniority,PRC DELEGATED CO-COMMISSIONING,NHS ROTHERHAM CCG GP PRACTICE,20017191,771.00 
Department of Health,NHS Rotherham CCG,31/12/2017,C&M-PMS Prem Notional Rent,PRC DELEGATED CO-COMMISSIONING,NHS ROTHERHAM CCG GP PRACTICE,20017191,"7,075.50 "
Department of Health,NHS Rotherham CCG,31/12/2017,C&M-PMS QOF Aspiration,PRC DELEGATED CO-COMMISSIONING,NHS ROTHERHAM CCG GP PRACTICE,20017191,"4,274.74 "
Department of Health,NHS Rotherham CCG,31/12/2017,C&M-PMS Contract Value,PRC DELEGATED CO-COMMISSIONING,NHS ROTHERHAM CCG GP PRACTICE,20017201,"38,253.48 "
Department of Health,NHS Rotherham CCG,31/12/2017,C&M-PMS DES Extended Hours Access,PRC DELEGATED CO-COMMISSIONING,NHS ROTHERHAM CCG GP PRACTICE,20017201,"2,186.90 "
Department of Health,NHS Rotherham CCG,31/12/2017,C&M-PMS Funding Differential Review,PRC DELEGATED CO-COMMISSIONING,NHS ROTHERHAM CCG GP PRACTICE,20017201,"1,609.92 "
Department of Health,NHS Rotherham CCG,31/12/2017,C&M-PMS Out of Hours Opt Outs,PRC DELEGATED CO-COMMISSIONING,NHS ROTHERHAM CCG GP PRACTICE,20017201,30.67 
Department of Health,NHS Rotherham CCG,31/12/2017,C&M-PMS PCO Seniority,PRC DELEGATED CO-COMMISSIONING,NHS ROTHERHAM CCG GP PRACTICE,20017201,"1,559.70 "
Department of Health,NHS Rotherham CCG,31/12/2017,C&M-PMS Prem Notional Rent,PRC DELEGATED CO-COMMISSIONING,NHS ROTHERHAM CCG GP PRACTICE,20017201,"3,204.17 "
Department of Health,NHS Rotherham CCG,31/12/2017,C&M-PMS QOF Aspiration,PRC DELEGATED CO-COMMISSIONING,NHS ROTHERHAM CCG GP PRACTICE,20017201,"3,051.89 "
Department of Health,NHS Rotherham CCG,31/12/2017,C&M-PMS Contract Value,PRC DELEGATED CO-COMMISSIONING,NHS ROTHERHAM CCG GP PRACTICE,20017203,"73,977.84 "
Department of Health,NHS Rotherham CCG,31/12/2017,C&M-PMS DES Extended Hours Access,PRC DELEGATED CO-COMMISSIONING,NHS ROTHERHAM CCG GP PRACTICE,20017203,"4,720.08 "
Department of Health,NHS Rotherham CCG,31/12/2017,C&M-PMS Funding Differential Review,PRC DELEGATED CO-COMMISSIONING,NHS ROTHERHAM CCG GP PRACTICE,20017203,"1,987.67 "
Department of Health,NHS Rotherham CCG,31/12/2017,C&M-PMS Out of Hours Opt Outs,PRC DELEGATED CO-COMMISSIONING,NHS ROTHERHAM CCG GP PRACTICE,20017203,0.28 
Department of Health,NHS Rotherham CCG,31/12/2017,C&M-PMS PCO Other,PRC DELEGATED CO-COMMISSIONING,NHS ROTHERHAM CCG GP PRACTICE,20017203,543.12 
Department of Health,NHS Rotherham CCG,31/12/2017,C&M-PMS PCO Seniority,PRC DELEGATED CO-COMMISSIONING,NHS ROTHERHAM CCG GP PRACTICE,20017203,"2,795.36 "
Department of Health,NHS Rotherham CCG,31/12/2017,C&M-PMS Prem Notional Rent,PRC DELEGATED CO-COMMISSIONING,NHS ROTHERHAM CCG GP PRACTICE,20017203,"6,666.67 "
Department of Health,NHS Rotherham CCG,31/12/2017,C&M-PMS Prem Rates,PRC DELEGATED CO-COMMISSIONING,NHS ROTHERHAM CCG GP PRACTICE,20017203,"2,002.80 "
Department of Health,NHS Rotherham CCG,31/12/2017,C&M-PMS Prem Water Rates,PRC DELEGATED CO-COMMISSIONING,NHS ROTHERHAM CCG GP PRACTICE,20017203,41.48 
Department of Health,NHS Rotherham CCG,31/12/2017,C&M-PMS QOF Aspiration,PRC DELEGATED CO-COMMISSIONING,NHS ROTHERHAM CCG GP PRACTICE,20017203,"7,080.60 "
Department of Health,NHS Rotherham CCG,31/12/2017,Prescribing,MEDICINES MANAGEMENT - CLINICAL,FRESENIUS KABI LTD,20141436,"25,841.35 "
Department of Health,NHS Rotherham CCG,31/12/2017,C&M-APMS OOH Opt Outs,PRC DELEGATED CO-COMMISSIONING,NHS ROTHERHAM CCG GP PRACTICE,20040021,"(2,604.02)"
Department of Health,NHS Rotherham CCG,31/12/2017,C&M-APMS QOF Aspiration,PRC DELEGATED CO-COMMISSIONING,NHS ROTHERHAM CCG GP PRACTICE,20040021,"(5,241.30)"
Department of Health,NHS Rotherham CCG,31/12/2017,C&M-PMS Funding Differential Review,PRC DELEGATED CO-COMMISSIONING,NHS ROTHERHAM CCG GP PRACTICE,20040021,"(15,408.80)"
Department of Health,NHS Rotherham CCG,31/12/2017,ME - PMS GP Prior Year ERs,PRC DELEGATED CO-COMMISSIONING,NHS ROTHERHAM CCG GP PRACTICE,20040021,"(37,683.82)"
Department of Health,NHS Rotherham CCG,31/12/2017,ME - PMS TPS Added Years Adj EEs,PRC DELEGATED CO-COMMISSIONING,NHS ROTHERHAM CCG GP PRACTICE,20040021,(77.87)
Department of Health,NHS Rotherham CCG,31/12/2017,ME-PMS GP Pension EEs-PMS,PRC DELEGATED CO-COMMISSIONING,NHS ROTHERHAM CCG GP PRACTICE,20040021,"(1,589.96)"
Department of Health,NHS Rotherham CCG,31/12/2017,ME-PMS GP Pension ERs Adjs - PMS,PRC DELEGATED CO-COMMISSIONING,NHS ROTHERHAM CCG GP PRACTICE,20040021,"(1,871.34)"
Department of Health,NHS Rotherham CCG,31/12/2017,ME-PMS GP Prior Year AVCs,PRC DELEGATED CO-COMMISSIONING,NHS ROTHERHAM CCG GP PRACTICE,20040021,"(1,485.24)"
Department of Health,NHS Rotherham CCG,31/12/2017,ME-PMS GP Prior Year EEs,PRC DELEGATED CO-COMMISSIONING,NHS ROTHERHAM CCG GP PRACTICE,20040021,"(32,444.60)"
Department of Health,NHS Rotherham CCG,31/12/2017,C&M-APMS Contract Value,PRC DELEGATED CO-COMMISSIONING,NHS ROTHERHAM CCG GP PRACTICE,20040022,"54,443.21 "
Department of Health,NHS Rotherham CCG,31/12/2017,C&M-APMS DES Extended Hours Access,PRC DELEGATED CO-COMMISSIONING,NHS ROTHERHAM CCG GP PRACTICE,20040022,"3,488.88 "
Department of Health,NHS Rotherham CCG,31/12/2017,C&M-APMS Other FDR Payment,PRC DELEGATED CO-COMMISSIONING,NHS ROTHERHAM CCG GP PRACTICE,20040022,"15,408.80 "
Department of Health,NHS Rotherham CCG,31/12/2017,C&M-APMS Prem Actual Rent,PRC DELEGATED CO-COMMISSIONING,NHS ROTHERHAM CCG GP PRACTICE,20040022,"1,250.00 "
Department of Health,NHS Rotherham CCG,31/12/2017,C&M-APMS Prem Healthcentre Rates,PRC DELEGATED CO-COMMISSIONING,NHS ROTHERHAM CCG GP PRACTICE,20040022,855.60 
Department of Health,NHS Rotherham CCG,31/12/2017,C&M-APMS Prem Healthcentre Rent,PRC DELEGATED CO-COMMISSIONING,NHS ROTHERHAM CCG GP PRACTICE,20040022,"4,500.00 "
Department of Health,NHS Rotherham CCG,31/12/2017,C&M-APMS Prem Rates,PRC DELEGATED CO-COMMISSIONING,NHS ROTHERHAM CCG GP PRACTICE,20040022,"1,055.91 "
Department of Health,NHS Rotherham CCG,31/12/2017,C&M-APMS Prem Water Rates,PRC DELEGATED CO-COMMISSIONING,NHS ROTHERHAM CCG GP PRACTICE,20040022,82.20 
Department of Health,NHS Rotherham CCG,31/12/2017,C&M-APMS QOF Aspiration,PRC DELEGATED CO-COMMISSIONING,NHS ROTHERHAM CCG GP PRACTICE,20040022,"4,367.75 "
Department of Health,NHS Rotherham CCG,31/12/2017,C&M-PMS DES Learn Dsblty Hlth Chk,PRC DELEGATED CO-COMMISSIONING,NHS ROTHERHAM CCG GP PRACTICE,20040022,"1,260.00 "
Department of Health,NHS Rotherham CCG,31/12/2017,C&M-PMS Funding Differential Review,PRC DELEGATED CO-COMMISSIONING,NHS ROTHERHAM CCG GP PRACTICE,20040022,"12,840.67 "
Department of Health,NHS Rotherham CCG,31/12/2017,C&M-PMS Prem Healthcentre Rent,PRC DELEGATED CO-COMMISSIONING,NHS ROTHERHAM CCG GP PRACTICE,20040022,"43,798.37 "
Department of Health,NHS Rotherham CCG,31/12/2017,C&M-PMS QOF Aspiration,PRC DELEGATED CO-COMMISSIONING,NHS ROTHERHAM CCG GP PRACTICE,20040022,"4,243.96 "
Department of Health,NHS Rotherham CCG,31/12/2017,Apprenticeship Levy Payable,BALANCE SHEET,HMRC,20087182,423.00 
Department of Health,NHS Rotherham CCG,31/12/2017,Income tax <1Yr,BALANCE SHEET,HMRC,20087182,"47,714.78 "
Department of Health,NHS Rotherham CCG,31/12/2017,Income tax <1Yr-Student Loans,BALANCE SHEET,HMRC,20087182,97.00 
Department of Health,NHS Rotherham CCG,31/12/2017,National Insurance < 1 yr-NI- ERS,BALANCE SHEET,HMRC,20087182,"35,101.09 "
Department of Health,NHS Rotherham CCG,31/12/2017,National Insurance < 1 yr-NI-EES,BALANCE SHEET,HMRC,20087182,"26,671.84 "
Department of Health,NHS Rotherham CCG,31/12/2017,Statutory Mat Pay < 1 yr,BALANCE SHEET,HMRC,20087182,(518.80)
Department of Health,NHS Rotherham CCG,31/12/2017,Chrgs from SLA,BUSINESS INFORMATICS,KIER BUSINESS SERVICES LTD,19994204,"26,703.60 "
Department of Health,NHS Rotherham CCG,31/12/2017,Hcare Srv Rec NHS Trust-Contract Baseline,ACUTE COMMISSIONING,LEEDS TEACHING HOSPITALS NHS TRUST,19903061,"(31,328.44)"
Department of Health,NHS Rotherham CCG,31/12/2017,Hcare Srv Rec NHS Trust-Contract Baseline,ACUTE COMMISSIONING,LEEDS TEACHING HOSPITALS NHS TRUST,19957977,"33,916.01 "
Department of Health,NHS Rotherham CCG,31/12/2017,Cont Care-Learning Disab(<65),CHC ADULT FULLY FUNDED,LONNEN HEALTH CARE LTD,20227994,"36,886.35 "
Department of Health,NHS Rotherham CCG,31/12/2017,C&M-PMS Contract Value,PRC DELEGATED CO-COMMISSIONING,NHS ROTHERHAM CCG GP PRACTICE,20019540,"93,526.85 "
Department of Health,NHS Rotherham CCG,31/12/2017,C&M-PMS DES Extended Hours Access,PRC DELEGATED CO-COMMISSIONING,NHS ROTHERHAM CCG GP PRACTICE,20019540,"5,245.43 "
Department of Health,NHS Rotherham CCG,31/12/2017,C&M-PMS Funding Differential Review,PRC DELEGATED CO-COMMISSIONING,NHS ROTHERHAM CCG GP PRACTICE,20019540,"3,057.08 "
Department of Health,NHS Rotherham CCG,31/12/2017,C&M-PMS PCO Seniority,PRC DELEGATED CO-COMMISSIONING,NHS ROTHERHAM CCG GP PRACTICE,20019540,"2,178.26 "
Department of Health,NHS Rotherham CCG,31/12/2017,C&M-PMS Prem Actual Rent,PRC DELEGATED CO-COMMISSIONING,NHS ROTHERHAM CCG GP PRACTICE,20019540,"7,153.13 "
Department of Health,NHS Rotherham CCG,31/12/2017,C&M-PMS Prem Healthcentre Rent,PRC DELEGATED CO-COMMISSIONING,NHS ROTHERHAM CCG GP PRACTICE,20019540,"1,202.52 "
Department of Health,NHS Rotherham CCG,31/12/2017,C&M-PMS Prem Notional Rent,PRC DELEGATED CO-COMMISSIONING,NHS ROTHERHAM CCG GP PRACTICE,20019540,"7,079.17 "
Department of Health,NHS Rotherham CCG,31/12/2017,C&M-PMS Prem Rates,PRC DELEGATED CO-COMMISSIONING,NHS ROTHERHAM CCG GP PRACTICE,20019540,"3,643.20 "
Department of Health,NHS Rotherham CCG,31/12/2017,C&M-PMS Prem Water Rates,PRC DELEGATED CO-COMMISSIONING,NHS ROTHERHAM CCG GP PRACTICE,20019540,189.99 
Department of Health,NHS Rotherham CCG,31/12/2017,C&M-PMS QOF Aspiration,PRC DELEGATED CO-COMMISSIONING,NHS ROTHERHAM CCG GP PRACTICE,20019540,"10,063.53 "
Department of Health,NHS Rotherham CCG,31/12/2017,Prescribing,PRESCRIBING,NHS SHEFFIELD CCG,20141438,"26,465.54 "
Department of Health,NHS Rotherham CCG,31/12/2017,Hcare Srv Rec Fdtn Trust-Non Contract,NCAS/OATS,NORTHERN LINCOLNSHIRE AND GOOLE HOSPITALS NHS FOUNDATION TRUST,19970305,"27,331.80 "
Department of Health,NHS Rotherham CCG,30/11/2017,Hcare Srv Rec NHS Trust-Non Contract,NCAS/OATS,NOTTINGHAM UNIVERSITY HOSPITALS NHS TRUST,19770762,"80,202.88 "
Department of Health,NHS Rotherham CCG,31/12/2017,Clinical&Medical-Commercial Sector,ACUTE COMMISSIONING,ONEHEALTH GROUP,20227964,"34,415.55 "
Department of Health,NHS Rotherham CCG,31/12/2017,Clinical&Medical-Commercial Sector,PATIENT TRANSPORT,PREMIER CARE DIRECT LTD,20115181,"38,557.00 "
Department of Health,NHS Rotherham CCG,31/12/2017,Hcare Srv Rec Fdtn Trust-Contract Baseline,MENTAL HEALTH CONTRACTS,ROTHERHAM DONCASTER & SOUTH HUMBER MENTAL HEALTH NHS FOUNDATION TRUST,19970383,"50,823.00 "
Department of Health,NHS Rotherham CCG,31/12/2017,Hcare Srv Rec Fdtn Trust-Contract Baseline,MENTAL HEALTH CONTRACTS,ROTHERHAM DONCASTER & SOUTH HUMBER MENTAL HEALTH NHS FOUNDATION TRUST,19970387,"2,241,064.08 "
Department of Health,NHS Rotherham CCG,31/12/2017,Hcare Srv Rec Fdtn Trust-Contract Baseline,LEARNING DIFFICULTIES,ROTHERHAM DONCASTER & SOUTH HUMBER MENTAL HEALTH NHS FOUNDATION TRUST,19970388,"185,473.00 "
Department of Health,NHS Rotherham CCG,30/11/2017,Clinical&Medical-Serv Recd-F Trsts,MENTAL HEALTH CONTRACTS,ROTHERHAM DONCASTER & SOUTH HUMBER MENTAL HEALTH NHS FOUNDATION TRUST,19739763,"31,070.37 "
Department of Health,NHS Rotherham CCG,31/12/2017,Clinical&Medical-Voluntary Sector,HOSPICES,ROTHERHAM HOSPICE TRUST (THE),19994213,"669,988.00 "
Department of Health,NHS Rotherham CCG,31/12/2017,Clinical&Medical-Othe Public Sector,CHILDREN SERVICES,ROTHERHAM METROPOLITAN BOROUGH COUNCIL,19994088,"36,031.15 "
Department of Health,NHS Rotherham CCG,31/12/2017,Social Care-Direct Payments,REABLEMENT,ROTHERHAM METROPOLITAN BOROUGH COUNCIL,20180998,"35,000.00 "
Department of Health,NHS Rotherham CCG,31/12/2017,Cont Care- Prior Year Payments,ADULT JOINT FUNDED CONTINUING CARE,ROTHERHAM METROPOLITAN BOROUGH COUNCIL,20250285,"26,005.92 "
Department of Health,NHS Rotherham CCG,31/12/2017,Cont Care-Physical Disab (<65),CHC ADULT JOINT FUNDED,ROTHERHAM METROPOLITAN BOROUGH COUNCIL,20250285,"33,282.19 "
Department of Health,NHS Rotherham CCG,31/12/2017,Clinical&Medical-Serv Recd-F Trsts,COLLABORATIVE COMMISSIONING,ROTHERHAM NHS FOUNDATION TRUST,19903219,"30,306.75 "
Department of Health,NHS Rotherham CCG,31/12/2017,Hcare Srv Rec Fdtn Trust-Contract Baseline,ACUTE COMMISSIONING,ROTHERHAM NHS FOUNDATION TRUST,19925074,"242,686.00 "
Department of Health,NHS Rotherham CCG,31/12/2017,Hcare Srv Rec Fdtn Trust-Contract Baseline,ACUTE COMMISSIONING,ROTHERHAM NHS FOUNDATION TRUST,19949490,"11,847,842.00 "
Department of Health,NHS Rotherham CCG,31/12/2017,Hcare Srv Rec Fdtn Trust-Contract Baseline,COMMUNITY SERVICES,ROTHERHAM NHS FOUNDATION TRUST,19949490,"2,492,746.00 "
Department of Health,NHS Rotherham CCG,31/12/2017,Oth Travel Costs-Training Trav&Subs,MEDICINES MANAGEMENT - CLINICAL,ROTHERHAM NHS FOUNDATION TRUST,20142892,448.67 
Department of Health,NHS Rotherham CCG,31/12/2017,Seconded-Basic Sal-Staff fm oth org,MEDICINES MANAGEMENT - CLINICAL,ROTHERHAM NHS FOUNDATION TRUST,20142892,"36,343.42 "
Department of Health,NHS Rotherham CCG,31/12/2017,Stationery,MEDICINES MANAGEMENT - CLINICAL,ROTHERHAM NHS FOUNDATION TRUST,20142892,568.61 
Department of Health,NHS Rotherham CCG,31/12/2017,Hcare Srv Rec Fdtn Trust-Contract Baseline,ACUTE COMMISSIONING,SHEFFIELD CHILDRENS NHS FOUNDATION TRUST,20028819,"163,749.00 "
Department of Health,NHS Rotherham CCG,31/12/2017,Hcare Srv Rec Fdtn Trust-Contract Cost per Case,ACUTE COMMISSIONING,SHEFFIELD TEACHING HOSPITALS NHS FOUNDATION TRUST,19970322,"52,599.00 "
Department of Health,NHS Rotherham CCG,31/12/2017,Hcare Srv Rec Fdtn Trust-Contract Baseline,ACUTE COMMISSIONING,SHEFFIELD TEACHING HOSPITALS NHS FOUNDATION TRUST,19970327,"134,554.00 "
Department of Health,NHS Rotherham CCG,31/12/2017,Hcare Srv Rec Fdtn Trust-Contract Baseline,ACUTE COMMISSIONING,SHEFFIELD TEACHING HOSPITALS NHS FOUNDATION TRUST,19970330,"1,625,560.00 "
Department of Health,NHS Rotherham CCG,31/12/2017,Hcare Srv Rec Fdtn Trust-Contract Cost per Case,ACUTE COMMISSIONING,SHEFFIELD TEACHING HOSPITALS NHS FOUNDATION TRUST,19970332,"176,108.00 "
Department of Health,NHS Rotherham CCG,31/12/2017,C&M-PMS Contract Value,PRC DELEGATED CO-COMMISSIONING,NHS ROTHERHAM CCG GP PRACTICE,20017204,(83.54)
Department of Health,NHS Rotherham CCG,31/12/2017,C&M-PMS GP Statutory Levy,PRC DELEGATED CO-COMMISSIONING,NHS ROTHERHAM CCG GP PRACTICE,20017204,(471.33)
Department of Health,NHS Rotherham CCG,31/12/2017,C&M-PMS Out of Hours Opt Outs,PRC DELEGATED CO-COMMISSIONING,NHS ROTHERHAM CCG GP PRACTICE,20017204,"(5,755.31)"
Department of Health,NHS Rotherham CCG,31/12/2017,C&M-PMS Prem Healthcentre Rent,PRC DELEGATED CO-COMMISSIONING,NHS ROTHERHAM CCG GP PRACTICE,20017204,"(3,794.84)"
Department of Health,NHS Rotherham CCG,31/12/2017,C&M-PMS QOF Aspiration,PRC DELEGATED CO-COMMISSIONING,NHS ROTHERHAM CCG GP PRACTICE,20017204,"(1,137.14)"
Department of Health,NHS Rotherham CCG,31/12/2017,C&M-PMS Voluntary Levy,PRC DELEGATED CO-COMMISSIONING,NHS ROTHERHAM CCG GP PRACTICE,20017204,(69.38)
Department of Health,NHS Rotherham CCG,31/12/2017,ME-PMS GP Pension EEs-PMS,PRC DELEGATED CO-COMMISSIONING,NHS ROTHERHAM CCG GP PRACTICE,20017204,"(10,694.39)"
Department of Health,NHS Rotherham CCG,31/12/2017,ME-PMS GP Pension ERs Adjs - PMS,PRC DELEGATED CO-COMMISSIONING,NHS ROTHERHAM CCG GP PRACTICE,20017204,"(10,767.04)"
Department of Health,NHS Rotherham CCG,31/12/2017,C&M-PMS Contract Value,PRC DELEGATED CO-COMMISSIONING,NHS ROTHERHAM CCG GP PRACTICE,20017205,"121,757.88 "
Department of Health,NHS Rotherham CCG,31/12/2017,C&M-PMS DES Extended Hours Access,PRC DELEGATED CO-COMMISSIONING,NHS ROTHERHAM CCG GP PRACTICE,20017205,"7,856.03 "
Department of Health,NHS Rotherham CCG,31/12/2017,C&M-PMS DES Learn Dsblty Hlth Chk,PRC DELEGATED CO-COMMISSIONING,NHS ROTHERHAM CCG GP PRACTICE,20017205,"1,260.00 "
Department of Health,NHS Rotherham CCG,31/12/2017,C&M-PMS Funding Differential Review,PRC DELEGATED CO-COMMISSIONING,NHS ROTHERHAM CCG GP PRACTICE,20017205,"3,748.50 "
Department of Health,NHS Rotherham CCG,31/12/2017,C&M-PMS Out of Hours Opt Outs,PRC DELEGATED CO-COMMISSIONING,NHS ROTHERHAM CCG GP PRACTICE,20017205,4.30 
Department of Health,NHS Rotherham CCG,31/12/2017,C&M-PMS PCO Other,PRC DELEGATED CO-COMMISSIONING,NHS ROTHERHAM CCG GP PRACTICE,20017205,710.16 
Department of Health,NHS Rotherham CCG,31/12/2017,C&M-PMS PCO Seniority,PRC DELEGATED CO-COMMISSIONING,NHS ROTHERHAM CCG GP PRACTICE,20017205,"4,731.02 "
Department of Health,NHS Rotherham CCG,31/12/2017,C&M-PMS Prem Healthcentre Rent,PRC DELEGATED CO-COMMISSIONING,NHS ROTHERHAM CCG GP PRACTICE,20017205,"1,092.73 "
Department of Health,NHS Rotherham CCG,31/12/2017,C&M-PMS QOF Aspiration,PRC DELEGATED CO-COMMISSIONING,NHS ROTHERHAM CCG GP PRACTICE,20017205,"14,247.24 "
Department of Health,NHS Rotherham CCG,31/12/2017,C&M-PMS Cost of Drugs -Prescribing,LOCAL ENHANCED SERVICES,NHS ROTHERHAM CCG GP PRACTICE,20219458,"23,231.47 "
Department of Health,NHS Rotherham CCG,31/12/2017,C&M-PMS Prof fees Prescribing,PRC DELEGATED CO-COMMISSIONING,NHS ROTHERHAM CCG GP PRACTICE,20219458,"5,884.09 "
Department of Health,NHS Rotherham CCG,31/12/2017,Hcare Srv Rec NHS Trust-Contract Baseline,AMBULANCE SERVICES,YORKSHIRE AMBULANCE SERVICE NHS TRUST,19994188,"619,282.00 "
Department of Health,NHS Rotherham CCG,31/12/2017,Hcare Srv Rec NHS Trust-Contract Baseline,PATIENT TRANSPORT,YORKSHIRE AMBULANCE SERVICE NHS TRUST,20028887,"119,257.60 "
Department of Health,NHS Rotherham CCG,31/12/2017,Hcare Srv Rec NHS Trust-Contract Baseline,NHS 111,YORKSHIRE AMBULANCE SERVICE NHS TRUST,20047637,"48,159.53 "
,,,,,,,"25,274,314.22 "
